fUST/lending_fUST_20240226
["ID","MTS","AMOUNT","RATE_DAILY","PERIOD"]
[315217629,1708947042800,-1066.05,0.00019726,2]
[315217630,1708947042811,-500.0,0.00019726,2]
[315217631,1708947042822,-500.0,0.00019726,2]
[315217632,1708947042834,-3562.33,0.00019726,2]
[315217633,1708947042845,-500.0,0.00019726,2]
[315217634,1708947042857,-500.0,0.00019726,2]
[315217635,1708947042868,-500.0,0.00019726,2]
[315217636,1708947042879,-1077.42,0.00019726,2]
[315217637,1708947042891,-1504.71,0.00019726,2]
[315217638,1708947042903,-552.42,0.00019726,2]
[315217639,1708947042913,-500.0,0.00019726,2]
[315217640,1708947042924,-18212.98,0.00019726,2]
[315217641,1708947042934,-652.41,0.00019726,2]
[315217642,1708947042944,-6708.01,0.00019726,2]
[315217643,1708947042954,-500.0,0.00019726,2]
[315217644,1708947042963,-1782.88,0.00019726,2]
[315217645,1708947042972,-780.39,0.00019726,2]
[315217646,1708947042981,-500.0,0.00019726,2]
[315217647,1708947042991,-1289.69,0.00019726,2]
[315217648,1708947043000,-500.0,0.00019726,2]
[315217649,1708947043009,-2053.58,0.00019726,2]
[315217650,1708947043019,-1002.44,0.00019726,2]
[315217651,1708947043029,-500.0,0.00019726,2]
[315217652,1708947043038,-1717.07,0.00019726,2]
[315217653,1708947043046,-205.1715328,0.00019726,2]
[315217654,1708947043056,-2101.37,0.00019726,2]
[315217655,1708947043065,-1633.45,0.00019726,2]
[315217656,1708947043074,-500.0,0.00019726,2]
[315217657,1708947043083,-500.0,0.00019726,2]
[315217658,1708947043092,-500.0,0.00019726,2]
[315217659,1708947043101,-1998.17,0.00019726,2]
[315217660,1708947043110,-500.0,0.00019726,2]
[315217661,1708947043119,-563.17,0.00019726,2]
[315217662,1708947043127,-200.5826354,0.000198,2]
[315217663,1708947043136,-200.5826354,0.000198,2]
[315217664,1708947043145,-200.5826354,0.000198,2]
[315217665,1708947043155,-500.0,0.00019999,2]
[315217666,1708947043164,-500.0,0.00019999,2]
[315217667,1708947043173,-500.0,0.00019999,2]
[315217668,1708947043182,-319.09963093,0.00019999,2]
[315217669,1708947043191,-200.5826354,0.0002,2]
[315217670,1708947043200,-500.0,0.0002,2]
[315217671,1708947043209,-1406.22,0.0002,2]
[315217672,1708947043218,-386.07810243,0.0002,2]
[315217673,1708947043227,-500.0,0.0002,2]
[315217674,1708947043236,-500.0,0.0002,2]
[315217675,1708947043245,-500.0,0.0002,2]
[315217676,1708947043254,-500.0,0.0002,2]
[315217677,1708947043263,-602.29,0.0002,2]
[315217678,1708947043273,-511.17,0.0002,2]
[315217679,1708947043281,-646.4,0.0002,2]
[315217680,1708947043290,-1144.02,0.0002,2]
[315217681,1708947043299,-2734.75,0.0002,2]
[315217682,1708947043308,-1145.29,0.0002,2]
[315217683,1708947043317,-500.0,0.0002,2]
[315217684,1708947043326,-1275.67,0.0002,2]
[315217685,1708947043335,-500.0,0.0002,2]
[315217686,1708947043344,-500.0,0.0002,2]
[315217687,1708947043353,-500.0,0.0002,2]
[315217688,1708947043362,-448.32673264,0.0002,2]
[315217689,1708947043371,-1538.45,0.0002,2]
[315217690,1708947043380,-3092.0,0.0002,2]
[315217691,1708947043390,-1625.69,0.0002,2]
[315217692,1708947043398,-1247.12,0.0002,2]
[315217693,1708947043407,-500.0,0.0002,2]
[315217694,1708947043416,-672.28,0.0002,2]
[315217695,1708947043425,-215.34610999,0.0002,2]
[315217704,1708947043804,-500.0,0.00019178,2]
[315217706,1708947043813,-500.0,0.00019452,2]
[315217708,1708947043822,-500.0,0.00019452,2]
[315217709,1708947043831,-500.0,0.00019726,2]
[315217711,1708947043840,-500.0,0.00019726,2]
[315217713,1708947043850,-184.181505,0.0002,2]
[315217728,1708947155689,1211.87883635,0.0002751,120]
[315217729,1708947183855,1211.87883635,0.0002751,120]
[315217785,1708948232693,-994.24362502,0.00017693,2]
[315217790,1708948232751,-3704.98587452,0.00017693,2]
[315217793,1708948232762,-1718.77128395,0.00017694,2]
[315217795,1708948232772,-677.52336534,0.00017695,2]
[315217797,1708948232781,-2042.9320212,0.00017702,2]
[315217800,1708948232791,-186.54204296,0.0001794,2]
[315217803,1708948232800,-2054.35256617,0.00018513,2]
[315217805,1708948232809,-177.99851423,0.00019078,2]
[315217809,1708948232819,-200.06520751,0.00019176,2]
[315217811,1708948232827,-258.0,0.00019177,2]
[315217815,1708948232837,-151.48714558,0.00019178,2]
[315217817,1708948232846,-500.0,0.00019178,2]
[315217836,1708948232974,-1226.24,0.00019178,2]
[315217838,1708948232985,-679.91,0.00019178,2]
[315217839,1708948232994,-500.0,0.00019178,2]
[315217840,1708948233003,-475.47317219,0.00019178,2]
[315217842,1708948233012,-500.0,0.00019178,2]
[315217843,1708948233021,-500.0,0.00019178,2]
[315217844,1708948233030,-500.0,0.00019178,2]
[315217845,1708948233039,-502.37578705,0.00019178,2]
[315217846,1708948233048,-500.0,0.00019178,2]
[315217847,1708948233058,-500.0,0.00019178,2]
[315217848,1708948233067,-554.85368204,0.00019178,2]
[315217849,1708948233076,-238.35007482,0.00019178,2]
[315217850,1708948233085,-500.0,0.00019178,2]
[315217851,1708948233094,-500.0,0.00019178,2]
[315217852,1708948233103,-659.76,0.00019178,2]
[315217853,1708948233115,-560.72,0.00019178,2]
[315217854,1708948233124,-500.0,0.00019178,2]
[315217855,1708948233134,-500.0,0.00019178,2]
[315217856,1708948233143,-360.90910848,0.00019178,2]
[315217857,1708948233152,-500.0,0.00019178,2]
[315217858,1708948233161,-500.0,0.00019178,2]
[315217859,1708948233170,-500.0,0.00019178,2]
[315217860,1708948233180,-500.0,0.00019178,2]
[315217861,1708948233189,-500.0,0.00019178,2]
[315217862,1708948233198,-500.0,0.00019178,2]
[315217863,1708948233207,-501.16867912,0.00019178,2]
[315217864,1708948233217,-3000.91,0.00019178,2]
[315217865,1708948233226,-500.0,0.00019178,2]
[315217866,1708948233235,-1257.59,0.00019178,2]
[315217867,1708948233244,-500.0,0.00019178,2]
[315217868,1708948233253,-1394.83,0.00019178,2]
[315217869,1708948233263,-500.0,0.00019178,2]
[315217870,1708948233273,-500.0,0.00019178,2]
[315217871,1708948233282,-588.75636197,0.00019178,2]
[315217872,1708948233290,-500.0,0.00019178,2]
[315217873,1708948233299,-500.0,0.00019178,2]
[315217874,1708948233308,-505.83665894,0.00019178,2]
[315217875,1708948233317,-500.0,0.00019178,2]
[315217876,1708948233326,-500.0,0.00019178,2]
[315217877,1708948233336,-500.0,0.00019178,2]
[315217878,1708948233345,-201.81516256,0.00019178,2]
[315217879,1708948233354,-500.89874379,0.00019178,2]
[315217880,1708948233363,-500.0,0.00019178,2]
[315217881,1708948233372,-1153.13,0.00019178,2]
[315217882,1708948233381,-500.45776838,0.00019178,2]
[315217883,1708948233390,-500.0,0.00019178,2]
[315217884,1708948233398,-502.01865313,0.00019178,2]
[315217885,1708948233407,-644.46,0.00019178,2]
[315217886,1708948233416,-500.0,0.00019178,2]
[315217887,1708948233425,-500.0,0.00019178,2]
[315217888,1708948233435,-500.0,0.00019178,2]
[315217889,1708948233444,-608.21516121,0.00019178,2]
[315217890,1708948233453,-500.0,0.00019178,2]
[315217891,1708948233462,-500.0,0.00019178,2]
[315217892,1708948233471,-1681.78,0.00019178,2]
[315217893,1708948233480,-500.0,0.00019178,2]
[315217894,1708948233488,-500.0,0.00019178,2]
[315217895,1708948233497,-500.0,0.00019178,2]
[315217896,1708948233506,-500.0,0.00019178,2]
[315217897,1708948233515,-500.0,0.00019178,2]
[315217898,1708948233527,-387.37101494,0.00019178,2]
[315217899,1708948233537,-500.0,0.00019178,2]
[315217900,1708948233556,-500.0,0.00019178,2]
[315217901,1708948233574,-500.0,0.00019178,2]
[315217902,1708948233584,-500.0,0.00019178,2]
[315217903,1708948233594,-500.0,0.00019178,2]
[315217904,1708948233603,-500.0,0.00019178,2]
[315217905,1708948233612,-500.0,0.00019178,2]
[315217906,1708948233621,-500.0,0.00019178,2]
[315217907,1708948233630,-500.0,0.00019178,2]
[315217908,1708948233639,-1477.3,0.00019178,2]
[315217909,1708948233648,-500.0,0.00019178,2]
[315217910,1708948233657,-500.0,0.00019178,2]
[315217911,1708948233666,-500.0,0.00019178,2]
[315217912,1708948233675,-500.0,0.00019178,2]
[315217913,1708948233685,-500.0,0.00019178,2]
[315217914,1708948233694,-1363.53,0.00019178,2]
[315217915,1708948233703,-500.0,0.00019178,2]
[315217916,1708948233712,-500.0,0.00019178,2]
[315217917,1708948233721,-500.0,0.00019178,2]
[315217918,1708948233730,-500.0,0.00019178,2]
[315217919,1708948233739,-312.51592479,0.00019178,2]
[315217920,1708948233748,-500.0,0.00019178,2]
[315217921,1708948233757,-500.0,0.00019178,2]
[315217922,1708948233766,-500.0,0.00019178,2]
[315217923,1708948233776,-640.38620748,0.00019178,2]
[315217924,1708948233785,-501.32910414,0.00019178,2]
[315217925,1708948233794,-809.79,0.00019178,2]
[315217926,1708948233803,-500.0,0.00019178,2]
[315217927,1708948233812,-500.0,0.00019178,2]
[315217928,1708948233821,-500.0,0.00019178,2]
[315217929,1708948233830,-500.0,0.00019178,2]
[315217930,1708948233839,-2294.84,0.00019178,2]
[315217931,1708948233847,-438.04326599,0.00019178,2]
[315217932,1708948233857,-500.0,0.00019178,2]
[315217933,1708948233865,-500.0,0.00019178,2]
[315217934,1708948233875,-500.0,0.00019178,2]
[315217935,1708948233884,-500.0,0.00019178,2]
[315217936,1708948233895,-544.80572393,0.00019178,2]
[315217937,1708948233903,-500.0,0.00019178,2]
[315217938,1708948233913,-500.0,0.00019178,2]
[315217939,1708948233922,-500.20438763,0.00019178,2]
[315217940,1708948233931,-646.85521638,0.00019178,2]
[315217941,1708948233940,-500.0,0.00019178,2]
[315217942,1708948233949,-500.0,0.00019178,2]
[315217943,1708948233958,-501.29706972,0.00019178,2]
[315217944,1708948233969,-239.92493776,0.00019178,2]
[315217945,1708948233977,-500.0,0.00019178,2]
[315217946,1708948233986,-7688.52172696,0.00019178,2]
[315217947,1708948234000,-2457.44489479,0.00019178,2]
[315217977,1708948238653,-8375.63337825,0.00019178,2]
[315217978,1708948238662,-500.0,0.00019178,2]
[315217980,1708948238671,-632.16,0.00019178,2]
[315217982,1708948238680,-877.56,0.00019178,2]
[315217984,1708948238689,-551.4523923,0.00019178,2]
[315217985,1708948238698,-500.0,0.00019178,2]
[315217987,1708948238708,-9882.65,0.00019178,2]
[315217989,1708948238717,-500.0,0.00019178,2]
[315217990,1708948238726,-509.9265336,0.00019178,2]
[315217991,1708948238735,-500.0,0.00019178,2]
[315217992,1708948238744,-500.0,0.00019178,2]
[315217993,1708948238753,-500.0,0.00019178,2]
[315217995,1708948238762,-500.0,0.00019178,2]
[315217997,1708948238771,-500.0,0.00019178,2]
[315217998,1708948238781,-1216.93,0.00019178,2]
[315218000,1708948238790,-1717.91,0.00019178,2]
[315218001,1708948238799,-500.0,0.00019178,2]
[315218002,1708948238808,-500.0,0.00019178,2]
[315218003,1708948238817,-4076.57,0.00019178,2]
[315218004,1708948238826,-500.0,0.00019178,2]
[315218005,1708948238835,-500.0,0.00019178,2]
[315218006,1708948238845,-500.0,0.00019178,2]
[315218007,1708948238855,-500.0,0.00019178,2]
[315218008,1708948238864,-500.0,0.00019178,2]
[315218009,1708948238875,-7800.26,0.00019178,2]
[315218010,1708948238886,-500.0,0.00019178,2]
[315218011,1708948238898,-500.0,0.00019178,2]
[315218012,1708948238909,-500.0,0.00019178,2]
[315218013,1708948238918,-500.0,0.00019178,2]
[315218014,1708948238927,-500.0,0.00019178,2]
[315218016,1708948238939,-20931.21,0.00019178,2]
[315218017,1708948238948,-500.0,0.00019178,2]
[315218018,1708948238957,-952.57,0.00019178,2]
[315218019,1708948238967,-500.0,0.00019178,2]
[315218020,1708948238975,-2377.59,0.00019178,2]
[315218021,1708948238985,-500.0,0.00019178,2]
[315218022,1708948238994,-1253.78,0.00019178,2]
[315218023,1708948239003,-500.0,0.00019178,2]
[315218024,1708948239013,-500.0,0.00019178,2]
[315218025,1708948239022,-500.0,0.00019178,2]
[315218026,1708948239031,-500.0,0.00019178,2]
[315218027,1708948239040,-500.0,0.00019178,2]
[315218028,1708948239050,-503.09950777,0.00019178,2]
[315218029,1708948239060,-500.0,0.00019178,2]
[315218030,1708948239070,-500.0,0.00019178,2]
[315218031,1708948239079,-750.86,0.00019178,2]
[315218032,1708948239089,-2136.51,0.00019178,2]
[315218033,1708948239098,-500.0,0.00019178,2]
[315218034,1708948239107,-500.0,0.00019178,2]
[315218035,1708948239116,-1000.0,0.00019178,2]
[315218036,1708948239125,-500.0,0.00019178,2]
[315218037,1708948239135,-500.0,0.00019178,2]
[315218038,1708948239143,-500.0,0.00019178,2]
[315218039,1708948239152,-1362.48,0.00019178,2]
[315218040,1708948239161,-2537.12,0.00019178,2]
[315218041,1708948239170,-500.0,0.00019178,2]
[315218042,1708948239179,-500.0,0.00019178,2]
[315218043,1708948239188,-500.0,0.00019178,2]
[315218044,1708948239198,-500.0,0.00019178,2]
[315218045,1708948239207,-212.2436076,0.00019178,2]
[315218046,1708948239216,-2073.13,0.00019178,2]
[315218047,1708948239225,-500.0,0.00019178,2]
[315218048,1708948239234,-3647.14,0.00019178,2]
[315218049,1708948239243,-502.22509866,0.00019178,2]
[315218050,1708948239252,-500.0,0.00019178,2]
[315218051,1708948239261,-500.0,0.00019178,2]
[315218052,1708948239269,-500.0,0.00019178,2]
[315218053,1708948239279,-500.0,0.00019178,2]
[315218054,1708948239288,-501.16229543,0.00019178,2]
[315218055,1708948239297,-1909.79,0.00019178,2]
[315218056,1708948239311,-501.16145419,0.00019178,2]
[315218057,1708948239320,-500.0,0.00019178,2]
[315218058,1708948239329,-2415.31,0.00019178,2]
[315218059,1708948239338,-500.0,0.00019178,2]
[315218060,1708948239347,-1997.82,0.00019178,2]
[315218061,1708948239356,-175.10182328,0.00019178,2]
[315218062,1708948239365,-500.0,0.00019178,2]
[315218063,1708948239374,-500.0,0.00019178,2]
[315218064,1708948239383,-500.0,0.00019178,2]
[315218065,1708948239392,-500.0,0.00019178,2]
[315218066,1708948239402,-500.0,0.00019178,2]
[315218067,1708948239411,-500.0,0.00019178,2]
[315218068,1708948239420,-500.0,0.00019178,2]
[315218069,1708948239429,-380.88443286,0.00019178,2]
[315218070,1708948239438,-776.05,0.00019178,2]
[315218071,1708948239447,-165.825037,0.00019178,2]
[315218072,1708948239457,-166.059238,0.00019178,2]
[315218073,1708948239465,-165.532385,0.00019178,2]
[315218074,1708948239474,-166.666666,0.00019178,2]
[315218075,1708948239486,-500.0,0.00019399,2]
[315218076,1708948239496,-500.0,0.00019451,2]
[315218077,1708948239505,-500.0,0.00019451,2]
[315218078,1708948239514,-500.0,0.00019451,2]
[315218079,1708948239523,-500.0,0.00019452,2]
[315218080,1708948239532,-1226.24,0.00019452,2]
[315218081,1708948239542,-679.91,0.00019452,2]
[315218082,1708948239551,-500.0,0.00019452,2]
[315218083,1708948239560,-152.68202281,0.00019452,2]
[315218084,1708948239570,-500.0,0.00019452,2]
[315218085,1708948239579,-500.0,0.00019452,2]
[315218086,1708948239588,-500.0,0.00019452,2]
[315218087,1708948239598,-500.0,0.00019452,2]
[315218088,1708948239607,-406.99210958,0.00019452,2]
[315218089,1708948239616,-659.76,0.00019452,2]
[315218090,1708948239625,-560.72,0.00019452,2]
[315218091,1708948239634,-507.80796114,0.00019452,2]
[315218092,1708948239644,-500.0,0.00019452,2]
[315218093,1708948239653,-325.74621711,0.00019452,2]
[315218094,1708948239662,-477.02525582,0.00019452,2]
[315218095,1708948239672,-3000.91,0.00019452,2]
[315218096,1708948239682,-500.0,0.00019452,2]
[315218097,1708948239691,-1257.59,0.00019452,2]
[315218098,1708948239701,-500.0,0.00019452,2]
[315218099,1708948239710,-1394.83,0.00019452,2]
[315218100,1708948239719,-500.0,0.00019452,2]
[315218101,1708948239728,-500.0,0.00019452,2]
[315218102,1708948239738,-500.0,0.00019452,2]
[315218103,1708948239747,-500.0,0.00019452,2]
[315218104,1708948239756,-1153.13,0.00019452,2]
[315218105,1708948239765,-644.46,0.00019452,2]
[315218106,1708948239774,-500.0,0.00019452,2]
[315218107,1708948239785,-500.0,0.00019452,2]
[315218108,1708948239795,-185.27418586,0.00019452,2]
[315218109,1708948239803,-1681.78,0.00019452,2]
[315218110,1708948239813,-500.0,0.00019452,2]
[315218111,1708948239823,-500.0,0.00019452,2]
[315218112,1708948239831,-500.0,0.00019452,2]
[315218113,1708948239841,-500.0,0.00019452,2]
[315218114,1708948239851,-500.0,0.00019452,2]
[315218115,1708948239859,-500.0,0.00019452,2]
[315218116,1708948239869,-501.29954357,0.00019452,2]
[315218117,1708948239878,-501.48262876,0.00019452,2]
[315218118,1708948239889,-500.0,0.00019452,2]
[315218119,1708948239899,-1477.3,0.00019452,2]
[315218120,1708948239908,-500.0,0.00019452,2]
[315218121,1708948239918,-500.0,0.00019452,2]
[315218122,1708948239927,-619.68506579,0.00019452,2]
[315218123,1708948239937,-1363.53,0.00019452,2]
[315218124,1708948239946,-500.0,0.00019452,2]
[315218125,1708948239956,-500.0,0.00019452,2]
[315218126,1708948239966,-500.0,0.00019452,2]
[315218127,1708948239976,-500.0,0.00019452,2]
[315218128,1708948239985,-500.0,0.00019452,2]
[315218129,1708948239994,-505.95058571,0.00019452,2]
[315218130,1708948240006,-2294.84,0.00019452,2]
[315218131,1708948240015,-500.0,0.00019452,2]
[315218132,1708948240025,-500.0,0.00019452,2]
[315218133,1708948240038,-500.0,0.00019452,2]
[315218134,1708948240048,-500.0,0.00019452,2]
[315218135,1708948240057,-500.0,0.00019452,2]
[315218136,1708948240068,-18521.6,0.00019452,2]
[315218137,1708948240078,-500.0,0.00019452,2]
[315218138,1708948240088,-632.16,0.00019452,2]
[315218139,1708948240098,-877.56,0.00019452,2]
[315218140,1708948240108,-9882.65,0.00019452,2]
[315218141,1708948240118,-500.0,0.00019452,2]
[315218143,1708948240129,-508.64002911,0.00019452,2]
[315218144,1708948240139,-500.0,0.00019452,2]
[315218145,1708948240149,-500.0,0.00019452,2]
[315218146,1708948240158,-500.0,0.00019452,2]
[315218147,1708948240168,-504.12794573,0.00019452,2]
[315218148,1708948240279,-1216.93,0.00019452,2]
[315218149,1708948240289,-1717.91,0.00019452,2]
[315218150,1708948240298,-500.0,0.00019452,2]
[315218151,1708948240308,-500.0,0.00019452,2]
[315218152,1708948240318,-4076.57,0.00019452,2]
[315218153,1708948240327,-436.52101816,0.00019452,2]
[315218154,1708948240337,-500.0,0.00019452,2]
[315218155,1708948240347,-7800.26,0.00019452,2]
[315218156,1708948240356,-500.0,0.00019452,2]
[315218157,1708948240365,-500.0,0.00019452,2]
[315218158,1708948240374,-487.01483259,0.00019452,2]
[315218159,1708948240383,-203.42282125,0.00019452,2]
[315218160,1708948240392,-500.0,0.00019452,2]
[315218161,1708948240402,-20931.21,0.00019452,2]
[315218162,1708948240411,-500.0,0.00019452,2]
[315218163,1708948240421,-952.57,0.00019452,2]
[315218164,1708948240430,-2377.59,0.00019452,2]
[315218165,1708948240440,-533.98724685,0.00019452,2]
[315218166,1708948240450,-1253.78,0.00019452,2]
[315218167,1708948240459,-607.75992688,0.00019452,2]
[315218168,1708948240469,-507.00886275,0.00019452,2]
[315218169,1708948240478,-499.53437694,0.00019452,2]
[315218170,1708948240487,-750.86,0.00019452,2]
[315218171,1708948240496,-2136.51,0.00019452,2]
[315218172,1708948240505,-500.0,0.00019452,2]
[315218173,1708948240514,-450.65957018,0.00019452,2]
[315218174,1708948240524,-544.61600458,0.00019452,2]
[315218175,1708948240535,-500.0,0.00019452,2]
[315218176,1708948240544,-500.0,0.00019452,2]
[315218177,1708948240553,-1362.48,0.00019452,2]
[315218178,1708948240563,-2537.12,0.00019452,2]
[315218179,1708948240572,-500.0,0.00019452,2]
[315218180,1708948240581,-2073.13,0.00019452,2]
[315218181,1708948240590,-3647.14,0.00019452,2]
[315218182,1708948240599,-500.0,0.00019452,2]
[315218183,1708948240608,-179.84917799,0.00019452,2]
[315218184,1708948240617,-500.0,0.00019452,2]
[315218185,1708948240626,-1909.79,0.00019452,2]
[315218186,1708948240636,-500.0,0.00019452,2]
[315218187,1708948240645,-2415.31,0.00019452,2]
[315218188,1708948240654,-153.98960683,0.00019452,2]
[315218189,1708948240663,-1997.82,0.00019452,2]
[315218190,1708948240672,-500.81546176,0.00019452,2]
[315218191,1708948240681,-500.0,0.00019452,2]
[315218192,1708948240690,-500.0,0.00019452,2]
[315218193,1708948240698,-500.0,0.00019452,2]
[315218194,1708948240707,-776.05,0.00019452,2]
[315218196,1708948240716,-182.85476532,0.00019472,2]
[315218197,1708948240725,-182.85476532,0.00019473,2]
[315218198,1708948240734,-621.03277362,0.0001948,2]
[315218199,1708948240743,-7330.41372259,0.00019481,2]
[315218200,1708948240752,-7330.41372259,0.00019493,2]
[315218201,1708948240761,-182.85476532,0.00019493,2]
[315218202,1708948240770,-7330.41372259,0.00019497,2]
[315218203,1708948240781,-25878.22111287,0.00019624,2]
[315218204,1708948240790,-166.666666,0.00019627,2]
[315218205,1708948240799,-500.0,0.00019653,2]
[315218206,1708948240808,-5529.96122929,0.000197,2]
[315218207,1708948240817,-5529.96122929,0.000197,2]
[315218208,1708948240827,-5529.96122929,0.000197,2]
[315218209,1708948240836,-500.0,0.00019725,2]
[315218210,1708948240845,-500.0,0.00019725,2]
[315218211,1708948240854,-500.0,0.00019725,2]
[315218212,1708948240863,-500.0,0.00019726,2]
[315218213,1708948240873,-1226.24,0.00019726,2]
[315218215,1708948240883,-679.91,0.00019726,2]
[315218217,1708948240894,-500.0,0.00019726,2]
[315218218,1708948240903,-500.0,0.00019726,2]
[315218219,1708948240912,-601.30700741,0.00019726,2]
[315218220,1708948240922,-500.0,0.00019726,2]
[315218221,1708948240931,-500.0,0.00019726,2]
[315218222,1708948240940,-659.76,0.00019726,2]
[315218223,1708948240949,-560.72,0.00019726,2]
[315218224,1708948240958,-503.11212196,0.00019726,2]
[315218225,1708948240968,-3000.91,0.00019726,2]
[315218226,1708948240977,-500.0,0.00019726,2]
[315218227,1708948240986,-1257.59,0.00019726,2]
[315218228,1708948240996,-500.0,0.00019726,2]
[315218229,1708948241005,-1394.83,0.00019726,2]
[315218230,1708948241014,-500.0,0.00019726,2]
[315218231,1708948241024,-500.0,0.00019726,2]
[315218232,1708948241034,-500.0,0.00019726,2]
[315218233,1708948241043,-195.15697486,0.00019726,2]
[315218234,1708948241052,-1153.13,0.00019726,2]
[315218235,1708948241062,-644.46,0.00019726,2]
[315218236,1708948241071,-500.0,0.00019726,2]
[315218237,1708948241081,-500.0,0.00019726,2]
[315218238,1708948241090,-1681.78,0.00019726,2]
[315218239,1708948241100,-500.0,0.00019726,2]
[315218240,1708948241109,-500.0,0.00019726,2]
[315218241,1708948241119,-500.0,0.00019726,2]
[315218242,1708948241129,-500.0,0.00019726,2]
[315218243,1708948241138,-500.0,0.00019726,2]
[315218244,1708948241148,-1477.3,0.00019726,2]
[315218245,1708948241158,-500.0,0.00019726,2]
[315218246,1708948241167,-500.0,0.00019726,2]
[315218247,1708948241177,-1363.53,0.00019726,2]
[315218248,1708948241186,-500.0,0.00019726,2]
[315218249,1708948241195,-500.0,0.00019726,2]
[315218250,1708948241204,-500.0,0.00019726,2]
[315218251,1708948241214,-500.0,0.00019726,2]
[315218252,1708948241223,-2294.84,0.00019726,2]
[315218253,1708948241232,-500.0,0.00019726,2]
[315218254,1708948241241,-502.36151926,0.00019726,2]
[315218255,1708948241250,-500.0,0.00019726,2]
[315218256,1708948241259,-500.0,0.00019726,2]
[315218257,1708948241268,-18521.6,0.00019726,2]
[315218258,1708948241277,-500.0,0.00019726,2]
[315218259,1708948241287,-632.16,0.00019726,2]
[315218260,1708948241296,-877.56,0.00019726,2]
[315218261,1708948241306,-9882.65,0.00019726,2]
[315218262,1708948241315,-356.05453121,0.00019726,2]
[315218263,1708948241325,-500.0,0.00019726,2]
[315218264,1708948241333,-500.0,0.00019726,2]
[315218265,1708948241342,-500.0,0.00019726,2]
[315218266,1708948241351,-1216.93,0.00019726,2]
[315218267,1708948241360,-1717.91,0.00019726,2]
[315218268,1708948241369,-500.0,0.00019726,2]
[315218269,1708948241378,-500.0,0.00019726,2]
[315218270,1708948241387,-4076.57,0.00019726,2]
[315218271,1708948241397,-500.0,0.00019726,2]
[315218272,1708948241406,-7800.26,0.00019726,2]
[315218273,1708948241415,-500.0,0.00019726,2]
[315218274,1708948241424,-500.0,0.00019726,2]
[315218275,1708948241433,-500.0,0.00019726,2]
[315218276,1708948241442,-20931.21,0.00019726,2]
[315218277,1708948241451,-505.63704845,0.00019726,2]
[315218278,1708948241461,-952.57,0.00019726,2]
[315218279,1708948241470,-2377.59,0.00019726,2]
[315218280,1708948241480,-1253.78,0.00019726,2]
[315218281,1708948241489,-750.86,0.00019726,2]
[315218282,1708948241500,-2136.51,0.00019726,2]
[315218283,1708948241509,-500.0,0.00019726,2]
[315218284,1708948241519,-500.0,0.00019726,2]
[315218285,1708948241530,-1362.48,0.00019726,2]
[315218286,1708948241539,-2537.12,0.00019726,2]
[315218287,1708948241548,-500.0,0.00019726,2]
[315218288,1708948241557,-2073.13,0.00019726,2]
[315218289,1708948241567,-3647.14,0.00019726,2]
[315218290,1708948241576,-500.0,0.00019726,2]
[315218291,1708948241585,-500.0,0.00019726,2]
[315218292,1708948241594,-1909.79,0.00019726,2]